[Event "Late-Titled-Tuesday-Blitz-January-30-2024"]
[Site "Chess.com"]
[Date "2024.01.30"]
[Round "1"]
[White "Seochesspie"]
[Black "Truequitos"]
[Result "1-0"]
[WhiteElo "2857"]
[BlackElo "2486"]
[TimeControl "180+1"]
[EndTime "14:04:47 PST"]
[Termination "Seochesspie won by resignation"]

1. e4 {[%clk 0:03:00.9]} 1... e6 {[%clk 0:03:00.1]} 2. d4 {[%clk 0:03:00.6]}
2... d5 {[%clk 0:03:00.5]} 3. exd5 {[%clk 0:02:55.2]} 3... exd5 {[%clk
0:03:00.4]} 4. Bd3 {[%clk 0:02:55.5]} 4... c5 {[%clk 0:02:58.5]} 5. Nf3 {[%clk
0:02:53.8]} 5... Nf6 {[%clk 0:02:57.7]} 6. O-O {[%clk 0:02:53.6]} 6... Be7
{[%clk 0:02:58.1]} 7. dxc5 {[%clk 0:02:52.6]} 7... O-O {[%clk 0:02:58.3]} 8. Be3
{[%clk 0:02:51.9]} 8... Nbd7 {[%clk 0:02:58.3]} 9. Nc3 {[%clk 0:02:44.2]} 9...
Nxc5 {[%clk 0:02:55.6]} 10. h3 {[%clk 0:02:39.1]} 10... Re8 {[%clk 0:02:45.6]}
11. Re1 {[%clk 0:02:36.6]} 11... Nce4 {[%clk 0:02:42]} 12. Bd4 {[%clk
0:02:35.2]} 12... Bf5 {[%clk 0:02:22.8]} 13. Ne2 {[%clk 0:02:24]} 13... Bg6
{[%clk 0:02:17.4]} 14. Nf4 {[%clk 0:02:22.7]} 14... Bf8 {[%clk 0:02:02]} 15.
Nxg6 {[%clk 0:02:22.6]} 15... hxg6 {[%clk 0:02:02.7]} 16. c3 {[%clk 0:02:22.3]}
16... Qd6 {[%clk 0:01:57.5]} 17. Qc2 {[%clk 0:02:18.6]} 17... Qf4 {[%clk
0:01:55.2]} 18. Re2 {[%clk 0:02:16.9]} 18... Nc5 {[%clk 0:01:49]} 19. Rae1
{[%clk 0:02:14.2]} 19... Nxd3 {[%clk 0:01:34.7]} 20. Qxd3 {[%clk 0:02:13.9]}
20... Ne4 {[%clk 0:01:32.3]} 21. Be3 {[%clk 0:02:10]} 21... Qf5 {[%clk
0:01:26.8]} 22. Rd1 {[%clk 0:02:09.3]} 22... Rad8 {[%clk 0:01:16.2]} 23. Bxa7
{[%clk 0:01:54.6]} 23... Ng3 {[%clk 0:00:44.5]} 24. Rxe8 {[%clk 0:01:50.9]} 1-0

[Event "Late-Titled-Tuesday-Blitz-January-30-2024"]
[Site "Chess.com"]
[Date "2024.01.30"]
[Round "1"]
[White "NowInChess"]
[Black "rookoco"]
[Result "1-0"]
[WhiteElo "2297"]
[BlackElo "2602"]
[TimeControl "180+1"]
[EndTime "14:04:52 PST"]
[Termination "NowInChess won by resignation"]

1. e4 {[%clk 0:02:59.3]} 1... c5 {[%clk 0:02:57.5]} 2. d3 {[%clk 0:02:59.5]}
2... d6 {[%clk 0:02:55.1]} 3. g3 {[%clk 0:02:59.5]} 3... g6 {[%clk 0:02:55.6]}
4. Bg2 {[%clk 0:02:59.9]} 4... Bg7 {[%clk 0:02:39.7]} 5. f4 {[%clk 0:02:59.9]}
5... Nc6 {[%clk 0:02:40]} 6. Nf3 {[%clk 0:03:00.3]} 6... e6 {[%clk 0:02:40.2]}
7. O-O {[%clk 0:03:00.4]} 7... Nge7 {[%clk 0:02:40.8]} 8. c3 {[%clk 0:03:00.6]}
8... b5 {[%clk 0:02:40.9]} 9. Be3 {[%clk 0:02:59]} 9... b4 {[%clk 0:02:41.1]}
10. d4 {[%clk 0:02:59.3]} 10... Ba6 {[%clk 0:02:40.4]} 11. Re1 {[%clk
0:02:57.7]} 11... bxc3 {[%clk 0:02:40.7]} 12. bxc3 {[%clk 0:02:55.8]} 12... O-O
{[%clk 0:02:41.2]} 13. dxc5 {[%clk 0:02:46.3]} 13... d5 {[%clk 0:02:37]} 14. e5
{[%clk 0:02:42.4]} 14... Qa5 {[%clk 0:02:30.2]} 15. Bd4 {[%clk 0:02:36]} 15...
Rab8 {[%clk 0:02:25.3]} 16. Nbd2 {[%clk 0:02:35.1]} 16... Nf5 {[%clk 0:02:24.4]}
17. Nb3 {[%clk 0:02:32.3]} 17... Qa4 {[%clk 0:02:12.3]} 18. Nbd2 {[%clk
0:02:14.7]} 18... Qa3 {[%clk 0:02:00.9]} 19. Nb3 {[%clk 0:02:13.1]} 19... Rfc8
{[%clk 0:01:33.4]} 20. Bf1 {[%clk 0:02:10.4]} 20... Bxf1 {[%clk 0:01:20.6]} 21.
Rxf1 {[%clk 0:02:11.3]} 21... Ncxd4 {[%clk 0:01:19.7]} 22. cxd4 {[%clk
0:01:52.8]} 22... Ne3 {[%clk 0:01:07.9]} 23. Qc1 {[%clk 0:01:52.5]} 23... Nxf1
{[%clk 0:01:07.1]} 24. Qxa3 {[%clk 0:01:51.3]} 24... Ne3 {[%clk 0:01:01.8]} 25.
Qxa7 {[%clk 0:01:42.5]} 25... Nc2 {[%clk 0:00:56.3]} 26. Rc1 {[%clk 0:01:34]}
26... Nb4 {[%clk 0:00:56.9]} 27. Ng5 {[%clk 0:01:32.1]} 27... Rf8 {[%clk
0:00:55.8]} 28. c6 {[%clk 0:01:23.7]} 1-0

[Event "Late-Titled-Tuesday-Blitz-January-30-2024"]
[Site "Chess.com"]
[Date "2024.01.30"]
[Round "1"]
[White "GlavkonVVS"]
[Black "AungTZ"]
[Result "1-0"]
[WhiteElo "2567"]
[BlackElo "2075"]
[TimeControl "180+1"]
[EndTime "14:04:58 PST"]
[Termination "GlavkonVVS won by resignation"]

1. Nf3 {[%clk 0:03:00.9]} 1... d5 {[%clk 0:02:59.3]} 2. c4 {[%clk 0:03:00.3]}
2... e6 {[%clk 0:02:58.8]} 3. d4 {[%clk 0:03:00.2]} 3... Nf6 {[%clk 0:02:57.5]}
4. Nc3 {[%clk 0:03:00.4]} 4... Be7 {[%clk 0:02:56.3]} 5. Bg5 {[%clk 0:03:00.5]}
5... O-O {[%clk 0:02:55.4]} 6. e3 {[%clk 0:03:00.5]} 6... Ne4 {[%clk 0:02:55.4]}
7. Bxe7 {[%clk 0:02:57.9]} 7... Qxe7 {[%clk 0:02:56.3]} 8. Nxe4 {[%clk
0:02:58.1]} 8... dxe4 {[%clk 0:02:56.4]} 9. Nd2 {[%clk 0:02:58.7]} 9... f5
{[%clk 0:02:56.3]} 10. c5 {[%clk 0:02:55.9]} 10... a5 {[%clk 0:02:49.6]} 11. Nc4
{[%clk 0:02:55.3]} 11... b6 {[%clk 0:02:46.3]} 12. cxb6 {[%clk 0:02:47.5]} 12...
cxb6 {[%clk 0:02:45.4]} 13. Qb3 {[%clk 0:02:44.7]} 13... Nd7 {[%clk 0:02:34.9]}
14. Be2 {[%clk 0:02:39.9]} 14... Ba6 {[%clk 0:02:26.8]} 15. O-O {[%clk
0:02:33.3]} 15... Kh8 {[%clk 0:02:16.6]} 16. Rfc1 {[%clk 0:02:31.3]} 16... Rab8
{[%clk 0:02:07.3]} 17. Bf1 {[%clk 0:02:29.3]} 17... h6 {[%clk 0:01:51.3]} 18.
Ne5 {[%clk 0:02:12.1]} 18... Nxe5 {[%clk 0:01:49.9]} 19. Bxa6 {[%clk 0:02:12]}
19... Ng4 {[%clk 0:01:44.6]} 20. h3 {[%clk 0:02:10]} 20... Nf6 {[%clk
0:01:42.8]} 21. Rc6 {[%clk 0:02:09]} 21... e5 {[%clk 0:01:33.5]} 22. Re6 {[%clk
0:02:08.2]} 22... Qa7 {[%clk 0:01:31.7]} 23. dxe5 {[%clk 0:02:04.4]} 23... Nd7
{[%clk 0:01:28.7]} 24. Re7 {[%clk 0:01:54.6]} 24... Qxa6 {[%clk 0:01:03.3]} 25.
Rxd7 {[%clk 0:01:54.4]} 25... f4 {[%clk 0:00:58.9]} 26. exf4 {[%clk 0:01:43.1]}
26... Rxf4 {[%clk 0:00:55.5]} 27. Qg3 {[%clk 0:01:43]} 1-0

[Event "Late-Titled-Tuesday-Blitz-January-30-2024"]
[Site "Chess.com"]
[Date "2024.01.30"]
[Round "1"]
[White "koncheto"]
[Black "rasmussvane"]
[Result "0-1"]
[WhiteElo "2516"]
[BlackElo "2957"]
[TimeControl "180+1"]
[EndTime "14:04:59 PST"]
[Termination "rasmussvane won by resignation"]

1. e4 {[%clk 0:03:00.9]} 1... c6 {[%clk 0:02:55.3]} 2. d4 {[%clk 0:03:01.3]}
2... d5 {[%clk 0:02:56.2]} 3. Nc3 {[%clk 0:03:02]} 3... dxe4 {[%clk 0:02:53]} 4.
Nxe4 {[%clk 0:03:02.9]} 4... Nf6 {[%clk 0:02:53.6]} 5. Nxf6+ {[%clk 0:03:03.1]}
5... exf6 {[%clk 0:02:54.5]} 6. c3 {[%clk 0:03:03.9]} 6... Bd6 {[%clk
0:02:53.9]} 7. Bd3 {[%clk 0:03:04.5]} 7... O-O {[%clk 0:02:54.5]} 8. Ne2 {[%clk
0:03:05.1]} 8... Re8 {[%clk 0:02:55.2]} 9. O-O {[%clk 0:03:05.2]} 9... Nd7
{[%clk 0:02:55.3]} 10. Ng3 {[%clk 0:03:05.1]} 10... g6 {[%clk 0:02:54.5]} 11.
Ne4 {[%clk 0:03:04.5]} 11... Be7 {[%clk 0:02:51]} 12. Re1 {[%clk 0:02:55]} 12...
f5 {[%clk 0:02:47.7]} 13. Ng3 {[%clk 0:02:51]} 13... Nf8 {[%clk 0:02:38.1]} 14.
Bd2 {[%clk 0:02:19.5]} 14... Be6 {[%clk 0:02:28.7]} 15. Qc2 {[%clk 0:02:05.7]}
15... Bd6 {[%clk 0:02:27.6]} 16. Rad1 {[%clk 0:02:05]} 16... Qc7 {[%clk
0:02:27.5]} 17. c4 {[%clk 0:02:02.2]} 17... Rad8 {[%clk 0:02:26.4]} 18. Bc3
{[%clk 0:02:02.1]} 18... h5 {[%clk 0:02:18.8]} 19. Nf1 {[%clk 0:01:52.9]} 19...
Nh7 {[%clk 0:02:15.3]} 20. Re2 {[%clk 0:01:45.5]} 20... Bf8 {[%clk 0:02:14.7]}
21. Ree1 {[%clk 0:01:32]} 21... Bg7 {[%clk 0:02:14.1]} 22. Be2 {[%clk
0:01:32.3]} 22... Rd7 {[%clk 0:02:08.4]} 23. Rd2 {[%clk 0:01:27.9]} 23... Red8
{[%clk 0:02:07]} 24. Red1 {[%clk 0:01:27]} 24... Bh6 {[%clk 0:02:03.9]} 25. Ne3
{[%clk 0:01:22.1]} 25... f4 {[%clk 0:02:04.2]} 26. Nf1 {[%clk 0:01:22.6]} 26...
f3 {[%clk 0:02:04.6]} 27. Bxf3 {[%clk 0:01:23]} 27... Bxc4 {[%clk 0:02:03]} 28.
b3 {[%clk 0:01:20.8]} 28... Bxd2 {[%clk 0:01:54.7]} 29. Nxd2 {[%clk 0:01:18.2]}
29... Bd5 {[%clk 0:01:53.2]} 30. Ne4 {[%clk 0:01:17.3]} 30... Re8 {[%clk
0:01:40.6]} 31. Bd2 {[%clk 0:01:07.2]} 31... Rde7 {[%clk 0:01:37.1]} 32. Ng5
{[%clk 0:01:03.5]} 32... Nxg5 {[%clk 0:01:26.9]} 33. Bxd5 {[%clk 0:01:00.5]}
33... cxd5 {[%clk 0:01:26.8]} 34. Qxc7 {[%clk 0:01:01.1]} 34... Rxc7 {[%clk
0:01:27.7]} 35. Bxg5 {[%clk 0:01:01.7]} 35... Re2 {[%clk 0:01:28]} 0-1

[Event "Late-Titled-Tuesday-Blitz-January-30-2024"]
[Site "Chess.com"]
[Date "2024.01.30"]
[Round "1"]
[White "GAO"]
[Black "DeTimmerman"]
[Result "0-1"]
[WhiteElo "2384"]
[BlackElo "2684"]
[TimeControl "180+1"]
[EndTime "14:05:04 PST"]
[Termination "DeTimmerman won by resignation"]

1. Nf3 {[%clk 0:03:00.9]} 1... Nf6 {[%clk 0:02:59.5]} 2. d4 {[%clk 0:03:01]}
2... e6 {[%clk 0:02:57.4]} 3. Bf4 {[%clk 0:02:56.8]} 3... d5 {[%clk 0:02:58.3]}
4. e3 {[%clk 0:02:56.4]} 4... Bd6 {[%clk 0:02:58]} 5. Bd3 {[%clk 0:02:55.9]}
5... O-O {[%clk 0:02:57.5]} 6. c3 {[%clk 0:02:55.9]} 6... b6 {[%clk 0:02:57.5]}
7. O-O {[%clk 0:02:55.7]} 7... Bb7 {[%clk 0:02:58]} 8. Nbd2 {[%clk 0:02:55.9]}
8... Ne4 {[%clk 0:02:57.5]} 9. Ne5 {[%clk 0:02:54.7]} 9... f6 {[%clk 0:02:50.8]}
10. Nef3 {[%clk 0:02:40.9]} 10... Nd7 {[%clk 0:02:50.1]} 11. Qc2 {[%clk
0:02:35.2]} 11... f5 {[%clk 0:02:47.5]} 12. Ne5 {[%clk 0:02:35.4]} 12... Nxe5
{[%clk 0:02:42.3]} 13. dxe5 {[%clk 0:02:35]} 13... Be7 {[%clk 0:02:42.4]} 14.
Nxe4 {[%clk 0:02:24.9]} 14... fxe4 {[%clk 0:02:41.8]} 15. Be2 {[%clk 0:02:25]}
15... Qe8 {[%clk 0:02:23.7]} 16. c4 {[%clk 0:02:22.1]} 16... c6 {[%clk
0:02:23.8]} 17. cxd5 {[%clk 0:02:14.4]} 17... cxd5 {[%clk 0:02:24.7]} 18. Qc7
{[%clk 0:02:14.2]} 18... Bc6 {[%clk 0:02:09.6]} 19. Rac1 {[%clk 0:02:05.1]}
19... Bc5 {[%clk 0:02:09.7]} 20. b4 {[%clk 0:01:58.9]} 20... Rf7 {[%clk
0:02:09.7]} 21. Qxf7+ {[%clk 0:01:31.6]} 21... Kxf7 {[%clk 0:02:09.7]} 22. bxc5
{[%clk 0:01:32.5]} 22... b5 {[%clk 0:02:09.9]} 23. Rb1 {[%clk 0:01:28.5]} 23...
Rb8 {[%clk 0:02:10]} 24. Rfc1 {[%clk 0:01:28]} 24... a5 {[%clk 0:02:10.3]} 25.
h3 {[%clk 0:01:26.4]} 25... b4 {[%clk 0:02:06.2]} 26. Bh6 {[%clk 0:01:26.3]}
26... Bb5 {[%clk 0:01:54.4]} 27. Bh5+ {[%clk 0:01:23.4]} 27... g6 {[%clk
0:01:54.2]} 28. Bg4 {[%clk 0:01:24]} 28... Bc4 {[%clk 0:01:51.3]} 29. Rb2 {[%clk
0:01:20.9]} 29... Rc8 {[%clk 0:01:51.3]} 30. a3 {[%clk 0:01:15.2]} 30... b3
{[%clk 0:01:51.3]} 31. Bd1 {[%clk 0:01:02.9]} 31... a4 {[%clk 0:01:50.5]} 32.
Be2 {[%clk 0:01:00.1]} 32... Rxc5 {[%clk 0:01:49.8]} 33. Bg4 {[%clk 0:00:57.2]}
33... Qc6 {[%clk 0:01:49]} 34. h4 {[%clk 0:00:51.4]} 34... Bd3 {[%clk 0:01:49]}
35. Rd1 {[%clk 0:00:50.6]} 35... Rc1 {[%clk 0:01:47.1]} 36. Rd2 {[%clk
0:00:48.5]} 36... Rxd1+ {[%clk 0:01:46.9]} 37. Bxd1 {[%clk 0:00:48.8]} 37... Qc1
{[%clk 0:01:46.8]} 38. Rxd3 {[%clk 0:00:47.7]} 38... exd3 {[%clk 0:01:46.6]} 39.
e4 {[%clk 0:00:48.6]} 39... Qxh6 {[%clk 0:01:42.9]} 40. Kh2 {[%clk 0:00:49.5]}
0-1

[Event "Late-Titled-Tuesday-Blitz-January-30-2024"]
[Site "Chess.com"]
[Date "2024.01.30"]
[Round "1"]
[White "AlexeiShirov"]
[Black "vidavi"]
[Result "1-0"]
[WhiteElo "2758"]
[BlackElo "2439"]
[TimeControl "180+1"]
[EndTime "14:05:11 PST"]
[Termination "AlexeiShirov won by resignation"]

1. e4 {[%clk 0:03:00.9]} 1... c5 {[%clk 0:02:59.5]} 2. Nf3 {[%clk 0:03:00.3]}
2... Nc6 {[%clk 0:03:00.1]} 3. d4 {[%clk 0:03:00.3]} 3... cxd4 {[%clk
0:03:00.6]} 4. Nxd4 {[%clk 0:03:00.4]} 4... Nf6 {[%clk 0:03:01.2]} 5. Nc3 {[%clk
0:02:59.8]} 5... e5 {[%clk 0:03:01.6]} 6. Ndb5 {[%clk 0:02:58.8]} 6... d6 {[%clk
0:03:01.8]} 7. Nd5 {[%clk 0:02:58.6]} 7... Nxd5 {[%clk 0:03:01.2]} 8. exd5
{[%clk 0:02:58.4]} 8... Nb8 {[%clk 0:03:01]} 9. a4 {[%clk 0:02:56.3]} 9... Be7
{[%clk 0:03:00.2]} 10. Bd2 {[%clk 0:02:46.7]} 10... O-O {[%clk 0:02:59.7]} 11.
a5 {[%clk 0:02:45.5]} 11... f5 {[%clk 0:02:51.1]} 12. c4 {[%clk 0:02:40.9]}
12... Nd7 {[%clk 0:02:47.1]} 13. Be2 {[%clk 0:02:28.7]} 13... a6 {[%clk
0:02:29.7]} 14. Nc3 {[%clk 0:02:27.9]} 14... Bf6 {[%clk 0:02:25.4]} 15. Na4
{[%clk 0:02:23.9]} 15... e4 {[%clk 0:02:20.3]} 16. Rc1 {[%clk 0:02:20.7]} 16...
Ne5 {[%clk 0:02:18.8]} 17. Nb6 {[%clk 0:02:19.6]} 17... Rb8 {[%clk 0:02:18.7]}
18. b4 {[%clk 0:02:19.1]} 18... Bd7 {[%clk 0:02:16.3]} 19. c5 {[%clk 0:02:16.8]}
19... Bb5 {[%clk 0:01:49.5]} 20. Bxb5 {[%clk 0:02:13.1]} 20... axb5 {[%clk
0:01:50.4]} 21. O-O {[%clk 0:02:12.6]} 21... Nd3 {[%clk 0:01:43.8]} 22. c6
{[%clk 0:02:07.1]} 22... Nxc1 {[%clk 0:01:40.2]} 23. Qxc1 {[%clk 0:02:05.6]}
23... bxc6 {[%clk 0:01:40.4]} 24. dxc6 {[%clk 0:02:04.3]} 24... Rxb6 {[%clk
0:01:38.5]} 25. c7 {[%clk 0:02:02.4]} 25... Qa8 {[%clk 0:01:16.5]} 26. axb6
{[%clk 0:02:01]} 26... Bd4 {[%clk 0:01:07.5]} 27. Be3 {[%clk 0:01:59.5]} 27...
Bxe3 {[%clk 0:01:02.6]} 28. Qxe3 {[%clk 0:01:54.7]} 28... f4 {[%clk 0:01:03]}
29. Qd4 {[%clk 0:01:51.3]} 29... Qc6 {[%clk 0:00:57.5]} 30. Rd1 {[%clk 0:01:48]}
30... e3 {[%clk 0:00:51.3]} 31. fxe3 {[%clk 0:01:38.6]} 31... f3 {[%clk
0:00:46.5]} 32. Qd5+ {[%clk 0:01:38]} 1-0

[Event "Late-Titled-Tuesday-Blitz-January-30-2024"]
[Site "Chess.com"]
[Date "2024.01.30"]
[Round "1"]
[White "Navyblue1"]
[Black "Ajedrecista3000"]
[Result "0-1"]
[WhiteElo "2169"]
[BlackElo "2590"]
[TimeControl "180+1"]
[EndTime "14:05:14 PST"]
[Termination "Ajedrecista3000 won by resignation"]

1. d4 {[%clk 0:02:58.2]} 1... Nf6 {[%clk 0:02:59.8]} 2. c4 {[%clk 0:02:54.6]}
2... e6 {[%clk 0:03:00]} 3. Nf3 {[%clk 0:02:47.3]} 3... c5 {[%clk 0:02:59.7]} 4.
d5 {[%clk 0:02:36.9]} 4... b5 {[%clk 0:02:59.9]} 5. dxe6 {[%clk 0:02:27.7]} 5...
fxe6 {[%clk 0:03:00.8]} 6. cxb5 {[%clk 0:02:26.7]} 6... d5 {[%clk 0:02:59.1]} 7.
e3 {[%clk 0:02:24.2]} 7... Bd6 {[%clk 0:02:58.3]} 8. Nc3 {[%clk 0:02:12.5]} 8...
O-O {[%clk 0:02:58.3]} 9. Be2 {[%clk 0:02:10.4]} 9... Bb7 {[%clk 0:02:52.8]} 10.
O-O {[%clk 0:01:59.4]} 10... Nbd7 {[%clk 0:02:52.6]} 11. b3 {[%clk 0:01:48.5]}
11... Qe7 {[%clk 0:02:52.6]} 12. Bb2 {[%clk 0:01:48.6]} 12... e5 {[%clk
0:02:53.3]} 13. Rc1 {[%clk 0:01:34.4]} 13... Rad8 {[%clk 0:02:52.1]} 14. Qc2
{[%clk 0:01:27.2]} 14... d4 {[%clk 0:02:49.7]} 15. exd4 {[%clk 0:01:26.5]} 15...
cxd4 {[%clk 0:02:28.5]} 16. Na4 {[%clk 0:01:23.2]} 16... Nd5 {[%clk 0:01:59.1]}
17. Bc4 {[%clk 0:01:15.1]} 17... Kh8 {[%clk 0:01:57.5]} 18. Rfe1 {[%clk
0:01:12.2]} 18... Nf4 {[%clk 0:01:56]} 19. Nxd4 {[%clk 0:00:56]} 19... Qg5
{[%clk 0:01:51.5]} 20. f3 {[%clk 0:00:40.9]} 20... exd4 {[%clk 0:01:49.3]} 21.
Bxd4 {[%clk 0:00:39.6]} 21... Bxf3 {[%clk 0:01:49]} 22. Be3 {[%clk 0:00:35.4]}
22... Bxg2 {[%clk 0:01:36.3]} 23. Bxf4 {[%clk 0:00:32.7]} 23... Rxf4 {[%clk
0:01:37.2]} 24. Rcd1 {[%clk 0:00:19.7]} 24... Be4+ {[%clk 0:01:36.4]} 0-1

[Event "Late-Titled-Tuesday-Blitz-January-30-2024"]
[Site "Chess.com"]
[Date "2024.01.30"]
[Round "1"]
[White "Hikaru"]
[Black "winniethepooh04"]
[Result "1-0"]
[WhiteElo "3290"]
[BlackElo "2543"]
[TimeControl "180+1"]
[EndTime "14:05:19 PST"]
[Termination "Hikaru won by resignation"]

1. e4 {[%clk 0:03:00.9]} 1... e6 {[%clk 0:02:59.7]} 2. d3 {[%clk 0:03:00.7]}
2... d5 {[%clk 0:03:00.4]} 3. Nd2 {[%clk 0:03:01.6]} 3... Nf6 {[%clk 0:03:00.8]}
4. Ngf3 {[%clk 0:03:02]} 4... Be7 {[%clk 0:03:00.3]} 5. g3 {[%clk 0:03:02.2]}
5... c5 {[%clk 0:03:00.5]} 6. Bg2 {[%clk 0:03:02.4]} 6... Nc6 {[%clk 0:03:01.1]}
7. O-O {[%clk 0:03:02.6]} 7... b6 {[%clk 0:03:01.7]} 8. Re1 {[%clk 0:03:02.2]}
8... Bb7 {[%clk 0:03:02]} 9. c3 {[%clk 0:03:00.9]} 9... Qc7 {[%clk 0:02:59.6]}
10. e5 {[%clk 0:03:00.7]} 10... Nd7 {[%clk 0:02:58.5]} 11. Qe2 {[%clk
0:03:00.8]} 11... g5 {[%clk 0:02:46.8]} 12. h3 {[%clk 0:02:59.3]} 12... O-O-O
{[%clk 0:02:46]} 13. Nf1 {[%clk 0:02:55]} 13... Rdg8 {[%clk 0:02:45.5]} 14. g4
{[%clk 0:02:55.6]} 14... h5 {[%clk 0:02:45.4]} 15. Ng3 {[%clk 0:02:55.9]} 15...
hxg4 {[%clk 0:02:40.1]} 16. hxg4 {[%clk 0:02:56.8]} 16... Rg6 {[%clk 0:02:20.1]}
17. d4 {[%clk 0:02:51.1]} 17... cxd4 {[%clk 0:02:16.5]} 18. cxd4 {[%clk
0:02:50.7]} 18... Kb8 {[%clk 0:02:12]} 19. Be3 {[%clk 0:02:35.8]} 19... Rc8
{[%clk 0:02:08.2]} 20. Rac1 {[%clk 0:02:34.4]} 20... Qd8 {[%clk 0:02:08.2]} 21.
Rc2 {[%clk 0:02:30.9]} 21... Na5 {[%clk 0:02:08.1]} 22. Rxc8+ {[%clk 0:02:30.7]}
22... Bxc8 {[%clk 0:02:06.6]} 23. Rc1 {[%clk 0:02:31.6]} 23... Bb7 {[%clk
0:02:05.4]} 24. b3 {[%clk 0:02:29.8]} 24... Rg8 {[%clk 0:02:04]} 25. Qd2 {[%clk
0:02:29]} 25... Nc6 {[%clk 0:02:02]} 26. Bf1 {[%clk 0:02:29.2]} 26... Ba3 {[%clk
0:01:56]} 27. Rd1 {[%clk 0:02:25.3]} 27... Bb4 {[%clk 0:01:55.6]} 28. Qb2 {[%clk
0:02:15.4]} 28... Qe7 {[%clk 0:01:54.6]} 29. Bb5 {[%clk 0:02:15.1]} 29... Ba3
{[%clk 0:01:51.4]} 30. Qd2 {[%clk 0:02:15]} 30... Bb4 {[%clk 0:01:51.4]} 31. Qc1
{[%clk 0:02:15.1]} 31... Ba3 {[%clk 0:01:46.9]} 32. Qb1 {[%clk 0:02:13.7]} 32...
a6 {[%clk 0:01:42.9]} 33. Bxc6 {[%clk 0:02:13.1]} 33... Bxc6 {[%clk 0:01:43.8]}
34. Qh7 {[%clk 0:02:13.5]} 34... Rg6 {[%clk 0:01:37.8]} 35. Bc1 {[%clk
0:02:07.4]} 35... Bxc1 {[%clk 0:01:36.6]} 36. Rxc1 {[%clk 0:02:08.3]} 36... Kb7
{[%clk 0:01:36]} 37. Qh8 {[%clk 0:01:59.5]} 37... Nb8 {[%clk 0:01:29]} 38. Nf5
{[%clk 0:01:43.5]} 38... exf5 {[%clk 0:01:24.8]} 39. gxf5 {[%clk 0:01:44.4]}
39... Qa3 {[%clk 0:01:25.2]} 40. Rc2 {[%clk 0:01:41.6]} 40... g4 {[%clk
0:01:07.8]} 41. fxg6 {[%clk 0:01:40.1]} 41... gxf3 {[%clk 0:01:07.4]} 42. g7
{[%clk 0:01:36.6]} 42... Qb4 {[%clk 0:00:58.7]} 43. g8=Q {[%clk 0:01:33.5]}
43... Qe1+ {[%clk 0:00:59.1]} 44. Kh2 {[%clk 0:01:33.7]} 1-0

[Event "Late-Titled-Tuesday-Blitz-January-30-2024"]
[Site "Chess.com"]
[Date "2024.01.30"]
[Round "1"]
[White "Chesstrainer1"]
[Black "Alexander_Donchenko"]
[Result "0-1"]
[WhiteElo "2511"]
[BlackElo "2933"]
[TimeControl "180+1"]
[EndTime "14:05:33 PST"]
[Termination "Alexander_Donchenko won by resignation"]

1. e4 {[%clk 0:03:00.9]} 1... c6 {[%clk 0:02:59.9]} 2. d4 {[%clk 0:03:00.5]}
2... d5 {[%clk 0:03:00.8]} 3. e5 {[%clk 0:03:00.5]} 3... Bf5 {[%clk 0:03:01.1]}
4. h4 {[%clk 0:03:00.4]} 4... h5 {[%clk 0:03:01]} 5. Bd3 {[%clk 0:03:00.6]} 5...
Bxd3 {[%clk 0:03:01.3]} 6. Qxd3 {[%clk 0:03:00.8]} 6... Qa5+ {[%clk 0:03:01.8]}
7. Nd2 {[%clk 0:02:59.6]} 7... e6 {[%clk 0:03:02.2]} 8. Nf3 {[%clk 0:02:58.1]}
8... Nh6 {[%clk 0:03:02.5]} 9. O-O {[%clk 0:02:52.2]} 9... Nf5 {[%clk
0:03:02.8]} 10. a4 {[%clk 0:02:42.1]} 10... Be7 {[%clk 0:02:59.7]} 11. b3 {[%clk
0:02:35.6]} 11... c5 {[%clk 0:02:48.4]} 12. Ba3 {[%clk 0:02:27]} 12... Nc6
{[%clk 0:02:46.5]} 13. Bxc5 {[%clk 0:02:14.9]} 13... Bxc5 {[%clk 0:02:47.4]} 14.
dxc5 {[%clk 0:02:15.5]} 14... Qxc5 {[%clk 0:02:46.6]} 15. c4 {[%clk 0:02:13.5]}
15... O-O {[%clk 0:02:42.3]} 16. cxd5 {[%clk 0:02:08.5]} 16... Qxd5 {[%clk
0:02:30.9]} 17. Qxd5 {[%clk 0:01:49.8]} 17... exd5 {[%clk 0:02:31.8]} 18. Rfd1
{[%clk 0:01:49.7]} 18... Rfe8 {[%clk 0:02:28.1]} 19. g3 {[%clk 0:01:29.1]} 19...
Rad8 {[%clk 0:02:19.8]} 20. Re1 {[%clk 0:01:11.2]} 20... d4 {[%clk 0:02:08]} 21.
Nc4 {[%clk 0:01:00.3]} 21... d3 {[%clk 0:02:01.2]} 22. Rad1 {[%clk 0:00:57.6]}
22... Nb4 {[%clk 0:01:58.2]} 23. Re4 {[%clk 0:00:54.7]} 23... Na2 {[%clk
0:01:48.8]} 24. Rf4 {[%clk 0:00:43.4]} 24... Nc3 {[%clk 0:01:47.8]} 25. Rxd3
{[%clk 0:00:18.8]} 25... Ne2+ {[%clk 0:01:44.8]} 26. Kf1 {[%clk 0:00:18.4]}
26... Nxf4 {[%clk 0:01:43.5]} 27. Rxd8 {[%clk 0:00:17.6]} 27... Rxd8 {[%clk
0:01:44.4]} 28. gxf4 {[%clk 0:00:17.9]} 28... Rd3 {[%clk 0:01:43.6]} 29. Ncd2
{[%clk 0:00:16.3]} 29... Nd4 {[%clk 0:01:43.2]} 30. Nxd4 {[%clk 0:00:13.4]}
30... Rxd4 {[%clk 0:01:44.1]} 31. Nc4 {[%clk 0:00:11.6]} 31... Rxf4 {[%clk
0:01:44.3]} 32. Nd6 {[%clk 0:00:09.7]} 32... Rb4 {[%clk 0:01:43]} 0-1